bitfinex/quotes_SOLUSD_20251124
["timestamp","ask_amount","ask_price","bid_price","bid_amount"]
[1764005606390,1.93593088,136.71,136.64,0.73185011]
[1764005606594,1.93593088,136.71,136.62,75.61850387]
[1764005606910,0.71,136.7,136.61,23.62881608]
[1764005607104,0.71,136.7,136.61,73.62881608]
[1764005607306,0.71,136.7,136.61,91.92908692]
[1764005607511,0.71,136.7,136.62,0.73195725]
[1764005607821,0.71,136.7,136.61,41.92908692]
[1764005608007,0.71,136.7,136.61,91.92908692]
[1764005608207,0.71,136.7,136.61,41.92908692]
[1764005608404,0.71,136.7,136.62,100.0]
[1764005608714,0.71,136.7,136.63,7.31903681]
[1764005609019,1.93593088,136.71,136.65,8.80994492]
[1764005609221,2.64593088,136.71,136.63,78.99662884]
[1764005609406,1.93593088,136.71,136.64,59.54179503]
[1764005609601,1.93593088,136.71,136.66,50.0]
[1764005609796,1.93593088,136.71,136.66,53.38]
[1764005610210,0.71,136.7,136.63,25.61662884]
[1764005610523,0.71,136.7,136.63,28.99662884]
[1764005610905,0.71,136.7,136.63,10.69895067]
[1764005611228,0.71,136.7,136.63,28.9965427]
[1764005611712,0.71,136.7,136.63,25.6165427]
[1764005612304,0.71,136.7,136.63,18.29759203]
[1764005612502,0.71,136.7,136.61,3.38]
[1764005612722,0.71,136.7,136.62,59.54190217]
[1764005612935,0.71,136.7,136.63,50.0]
[1764005613104,1.93593088,136.71,136.66,50.0]
[1764005613302,1.93593088,136.71,136.64,4.11185011]
[1764005613303,1.93593088,136.71,136.64,3.38]
[1764005613502,1.93593088,136.71,136.65,50.73179656]
[1764005613733,1.93593088,136.71,136.65,100.73179656]
[1764005614027,1.93593088,136.71,136.65,50.73179656]
[1764005614196,1.93593088,136.71,136.65,54.11179656]
[1764005614197,2.64593088,136.71,136.65,54.11179656]
[1764005614407,0.71,136.7,136.65,3.38]
[1764005614822,0.71,136.7,136.66,7.31743011]
[1764005615008,0.71,136.7,136.64,8.04994064]
[1764005615222,1.93593088,136.71,136.64,7.31809053]
[1764005615416,0.71,136.7,136.64,25.61434345]
[1764005615604,0.71,136.7,136.62,7.31917501]
[1764005615931,0.71,136.7,136.62,25.61810635]
[1764005616521,0.71,136.7,136.62,7.31917501]
[1764005616704,17.018864,136.7,136.6,7.32057496]
[1764005616904,16.308864,136.69,136.58,7.3215874]
[1764005617116,0.71,136.69,136.58,7.3215874]
[1764005617439,16.308864,136.7,136.58,7.3215874]
[1764005617440,0.71,136.68,136.58,7.3215874]
[1764005617946,0.71,136.68,136.58,3.38]
[1764005618223,0.71,136.68,136.59,50.0]
[1764005618432,0.71,136.67,136.58,53.38]
[1764005618636,0.71,136.67,136.59,50.0]
[1764005618853,0.71,136.67,136.6,25.62225475]
[1764005620129,0.71,136.67,136.6,75.62225475]
[1764005620629,0.71,136.67,136.6,25.62225475]
[1764005620829,8.80994492,136.66,136.53,50.0]
[1764005621028,8.80994492,136.66,136.54,7.32386113]
[1764005621235,16.308864,136.63,136.53,8.05668642]
[1764005621735,16.308864,136.63,136.5,50.0]
[1764005621736,8.80994492,136.61,136.5,18.31377316]
[1764005621938,16.308864,136.6,136.51,7.32547066]
[1764005622116,17.018864,136.6,136.51,0.73254706]
[1764005622319,9.51994492,136.59,136.48,0.73270808]
[1764005622834,0.71,136.58,136.48,0.73270808]
[1764005623040,8.80994492,136.53,136.45,0.2]
[1764005623242,8.80994492,136.51,136.45,0.2]
[1764005623846,0.71,136.5,136.45,0.2]
[1764005624435,0.71,136.5,136.45,7.52852166]
[1764005624830,0.71,136.5,136.45,25.85025123]
[1764005625733,16.308864,136.56,136.45,25.85025123]
[1764005625934,0.71,136.53,136.45,25.85025123]
[1764005626259,8.80994492,136.59,136.45,26.58312041]
[1764005626464,0.71,136.56,136.46,3.38]
[1764005627056,0.71,136.56,136.45,79.23025123]
[1764005627255,0.71,136.56,136.46,50.0]
[1764005627457,0.71,136.56,136.46,66.308864]
[1764005627630,7.31970732,136.62,136.46,66.308864]
[1764005627631,7.3179656,136.65,136.49,50.0]
[1764005627829,0.71,136.58,136.49,53.38]
[1764005628222,16.14974627,136.84,136.51,50.0]
[1764005628223,0.71,136.61,136.51,50.0]
[1764005628547,0.71,136.61,136.49,19.688864]
[1764005628548,0.71,136.61,136.49,66.308864]
[1764005628748,17.018864,136.61,136.49,69.688864]
[1764005629061,0.71,136.61,136.51,50.0]
[1764005629264,0.71,136.6,136.5,25.64102563]
[1764005629851,0.71,136.6,136.52,50.0]
[1764005630064,0.71,136.6,136.52,53.38]
[1764005630228,0.71,136.63,136.52,70.4213574]
[1764005630433,0.71,136.63,136.53,50.0]
[1764005631051,0.71,136.63,136.54,25.63351397]
[1764005631443,8.80994492,136.62,136.53,7.32424784]
[1764005631630,0.71,136.65,136.56,66.308864]
[1764005631836,0.71,136.65,136.56,67.04114285]
[1764005632034,0.71,136.65,136.56,20.42114285]
[1764005632254,0.71,136.65,136.56,0.73227885]
[1764005632430,0.71,136.65,136.54,17.04125011]
[1764005632859,8.80994492,136.64,136.53,41.94410576]
[1764005633029,8.80994492,136.64,136.53,25.63524176]
[1764005633367,0.72,136.63,136.53,25.63524176]
[1764005633536,0.72,136.63,136.53,26.36768151]
[1764005633932,0.72,136.63,136.54,50.0]
[1764005634444,0.72,136.63,136.55,4.11233247]
[1764005634843,0.72,136.65,136.55,4.11233247]
[1764005635058,0.72,136.65,136.55,7.32323359]
[1764005635367,0.73233247,136.66,136.55,26.36387803]
[1764005635566,87.09231252,136.82,136.55,26.36387803]
[1764005635567,0.72,136.7,136.58,116.308864]
[1764005635764,0.72,136.7,136.58,117.04103562]
[1764005635980,0.72,136.7,136.58,116.308864]
[1764005636131,0.72,136.7,136.58,66.308864]
[1764005636336,8.80994492,136.69,136.59,16.308864]
[1764005636654,8.80994492,136.69,136.57,3.4]
[1764005636880,0.72,136.68,136.57,3.4]
[1764005637161,0.72,136.68,136.58,25.62600673]
[1764005637367,0.72,136.68,136.58,125.62600673]
[1764005637950,0.72,136.68,136.59,17.04098201]
[1764005638434,0.72,136.68,136.6,2.1895]
[1764005638639,0.72,136.69,136.6,52.1895]
[1764005638940,0.72,136.69,136.61,25.62037917]
[1764005639360,0.72,136.69,136.61,26.35239]
[1764005639556,0.72,136.69,136.61,25.62037917]
[1764005641069,1.93593088,136.71,136.64,75.61475409]
[1764005641476,1.93593088,136.71,136.68,50.0]
[1764005641477,1e-08,136.71,136.68,50.0]
[1764005641643,1e-08,136.71,136.68,69.708864]
[1764005641968,0.72000001,136.71,136.64,25.61475409]
[1764005642567,1e-08,136.71,136.65,8.80994492]
[1764005642875,1e-08,136.71,136.68,50.0]
[1764005643077,1e-08,136.74,136.72,66.308864]
[1764005643440,1e-08,136.74,136.73,58.80994492]
[1764005643870,1e-08,136.74,136.73,3.4]
[1764005644063,1e-08,136.74,136.73,16.308864]
[1764005644279,1e-08,136.74,136.69,41.91424843]
[1764005644567,1e-08,136.74,136.69,95.31424843]
[1764005644772,1e-08,136.74,136.69,23.62468812]
[1764005645285,1e-08,136.74,136.69,7.31582412]
[1764005645443,1e-08,136.74,136.68,7.31634715]
[1764005645768,1e-08,136.74,136.69,50.73158241]
[1764005645969,1e-08,136.74,136.69,66.308864]
[1764005646269,1e-08,136.74,136.69,69.708864]
[1764005646471,1e-08,136.74,136.7,50.73152889]
[1764005647048,1e-08,136.74,136.73,123.6225479]
[1764005647380,1e-08,136.74,136.73,135.83249282]
[1764005648782,1e-08,136.74,136.73,57.3136839]
[1764005649168,1e-08,136.74,136.73,66.85499721]
[1764005650055,0.72,136.88,136.8,116.308864]
[1764005650375,0.72,136.88,136.79,16.308864]
[1764005650554,0.72,136.88,136.78,66.308864]
[1764005650747,0.72,136.88,136.78,116.308864]
[1764005651077,0.72,136.88,136.79,28.80966568]
[1764005651578,0.72,136.88,136.8,50.0]
[1764005651759,0.22,136.88,136.8,50.0]
[1764005652149,0.22,136.88,136.79,65.36204523]
[1764005652352,0.22,136.88,136.8,3.4]
[1764005652989,39.16148205,136.93,136.86,25.57357883]
[1764005653149,39.16148205,136.93,136.86,28.97357883]
[1764005653348,39.16148205,136.93,136.86,25.57357883]
[1764005653875,0.72,136.92,136.86,7.30673681]
[1764005654076,39.16148205,136.93,136.86,25.57357883]
[1764005654246,39.88148205,136.93,136.86,25.57357883]
[1764005654446,39.88148205,136.93,136.85,7.30721443]
[1764005654647,0.72,136.92,136.85,7.30721443]
[1764005654847,0.72,136.92,136.85,25.57539126]
[1764005655048,0.72,136.92,136.85,18.26817683]
[1764005655253,0.72,136.92,136.83,7.3082525]
[1764005655874,8.80994492,136.91,136.76,100.0]
[1764005656072,8.80994492,136.89,136.76,50.0]
[1764005656381,1.99999999,136.94,136.76,50.0]
[1764005656382,3.59447198,137.0,136.95,50.0]
[1764005656572,0.72,137.12,137.0,16.308864]
[1764005656770,1e-08,137.02,137.01,58.80994492]
[1764005656948,1e-08,137.02,137.01,66.308864]
[1764005657148,1e-08,137.02,137.01,23.60760131]
[1764005657552,1e-08,137.02,137.01,7.29873731]
[1764005657759,1e-08,137.02,137.01,123.60760131]
[1764005657954,1e-08,137.02,137.01,116.10868223]
[1764005658712,1e-08,137.02,137.01,118.10868222]
[1764005658851,1e-08,137.02,137.01,116.10868223]
[1764005659478,0.44039996,137.13,137.11,66.308864]
[1764005659669,0.44039996,137.13,137.08,50.0]
[1764005659981,0.44039996,137.13,137.08,100.0]
[1764005660183,7.28712014,137.23,137.08,100.0]
[1764005660356,7.28712014,137.23,137.04,8.80994492]
[1764005660357,8.80994492,137.21,137.04,50.0]
[1764005660555,8.80994492,137.17,137.05,50.0]
[1764005660779,25.11880892,137.19,137.05,50.0]
[1764005660958,8.80994492,137.17,137.05,50.0]
[1764005661281,36.45354794,137.26,137.06,26.24626148]
[1764005661484,36.04998093,137.51,137.15,100.0]
[1764005661485,3.42,137.29,137.15,100.0]
[1764005661682,3.42,137.29,137.15,50.0]
[1764005662062,3.42,137.29,137.15,100.0]
[1764005662267,0.72,137.28,137.19,50.0]
[1764005662470,0.72,137.28,137.16,50.0]
[1764005662874,0.72,137.28,137.2,50.0]
[1764005663190,0.72,137.28,137.21,7.28809853]
[1764005663401,0.72,137.28,137.2,57.28854832]
[1764005663563,0.72,137.28,137.2,25.51012266]
[1764005664082,0.72,137.28,137.2,75.51012266]
[1764005664480,0.72,137.28,137.18,57.28924544]
[1764005664683,8.80994492,137.27,137.15,7.29128691]
[1764005664992,0.72,137.28,137.15,25.51950419]
[1764005664993,3.42,137.26,137.15,25.51950419]
[1764005665182,16.308864,137.26,137.14,50.0]
[1764005665380,4.09,137.25,137.14,57.29171288]
[1764005665695,16.308864,137.21,137.05,50.0]
[1764005665990,3.42,137.21,137.11,50.0]
[1764005666376,0.67,137.2,137.08,50.0]
[1764005666761,20.398864,137.25,137.12,50.0]
[1764005667091,3.42,137.24,137.13,7.29235032]
[1764005667264,0.67,137.24,137.13,7.29235032]
[1764005667589,16.308864,137.25,137.13,7.29235032]
[1764005667590,4.09,137.23,137.13,7.29235032]
[1764005667890,4.09,137.23,137.11,67.0382054]
[1764005668195,16.308864,137.18,137.04,0.72971395]
[1764005668373,16.308864,137.18,137.03,50.0]
[1764005668374,8.80994492,137.13,136.92,50.67]
[1764005668691,8.80994492,137.13,136.89,0.73051355]
[1764005668692,16.308864,137.02,136.89,50.67]
[1764005668862,8.80994492,137.05,136.86,50.67]
[1764005668863,8.80994492,137.01,136.86,50.67]
[1764005669187,1.99999999,137.05,136.84,50.0]
[1764005669188,16.308864,136.96,136.87,0.67]
[1764005669401,19.748864,136.95,136.87,0.67]
[1764005669763,20.328864,136.95,136.85,0.67]
[1764005670005,16.888864,136.94,136.85,0.67]
[1764005670413,19.748864,136.93,136.85,0.67]
[1764005670578,3.44,136.92,136.85,0.67]
[1764005670779,0.58,136.92,136.82,0.67]
[1764005670997,4.02,136.91,136.79,50.0]
[1764005671221,4.02,136.91,136.8,0.67]
[1764005671514,25.69880892,136.9,136.8,0.67]
[1764005671884,0.58,136.89,136.8,0.67]
[1764005672088,8.80994492,136.87,136.77,0.67]
[1764005672603,25.11880892,136.85,136.72,50.0]
[1764005672905,25.11880892,136.85,136.72,0.67]
[1764005673076,0.58,136.84,136.73,0.67]
[1764005673278,1.99999999,136.9,136.76,50.0]
[1764005673279,12.24994492,136.88,136.76,50.0]
[1764005673478,3.44,136.87,136.76,50.0]
[1764005673679,3.44,136.87,136.77,0.67]
[1764005674311,0.58,136.89,136.77,0.67]
[1764005674481,3.44,136.87,136.77,0.67]
[1764005674801,8.80994492,136.86,136.72,75.59959443]
[1764005675001,3.44,136.85,136.74,50.67]
[1764005675317,4.02,136.85,136.75,7.31261425]
[1764005675475,4.02,136.85,136.75,7.98261425]
[1764005675678,28.55880892,136.88,136.76,0.67]
[1764005676187,8.80994492,136.86,136.76,0.67]
[1764005676402,3.44,136.85,136.76,50.67]
[1764005676796,3.44,136.87,136.78,50.0]
[1764005677016,8.80994492,136.86,136.77,0.67]
[1764005677211,4.02,136.86,136.77,0.67]
[1764005677525,9.38994492,136.85,136.72,50.0]
[1764005677722,9.38994492,136.85,136.74,0.67]
[1764005677914,0.58,136.84,136.74,0.67]
[1764005678211,3.44,136.83,136.74,0.67]
[1764005678416,16.888864,136.84,136.74,0.67]
[1764005678606,3.44,136.82,136.74,0.67]
[1764005679224,4.02,136.82,136.74,0.67]
[1764005679802,3.44,136.83,136.74,7.98292951]
[1764005680023,9.38994492,136.85,136.74,7.98292951]
[1764005680024,3.44,136.82,136.74,7.98292951]
[1764005680193,8.80994492,136.86,136.75,0.67]
[1764005680389,0.58,136.87,136.75,50.67]
[1764005680618,0.58,136.87,136.76,50.0]
[1764005680817,0.58,136.87,136.76,50.67]
[1764005680995,0.58,136.87,136.77,0.67]
[1764005681321,0.58,136.87,136.78,7.31101038]
[1764005681528,4.02,136.87,136.78,25.58853633]
[1764005681701,0.58,136.87,136.79,0.67]
[1764005682320,0.58,136.87,136.76,50.0]
[1764005682321,4.02,136.87,136.77,57.31139426]
[1764005682521,0.58,136.87,136.77,7.98139426]
[1764005682696,4.02,136.86,136.77,7.98139426]
[1764005682891,4.02,136.86,136.77,7.31139426]
[1764005683092,0.58,136.85,136.75,25.59235306]
[1764005683312,3.44,136.84,136.77,7.31154492]
[1764005683518,3.44,136.84,136.76,7.98200203]
[1764005683752,0.58,136.84,136.76,7.98200203]
[1764005684019,4.02,136.83,136.74,7.31267241]
[1764005684228,4.02,136.83,136.73,7.98355064]
[1764005684402,9.38994492,136.82,136.7,0.67]
[1764005684796,0.58,136.81,136.7,0.67]
[1764005685030,0.58,136.81,136.7,50.67]
[1764005685232,0.58,136.81,136.71,50.0]
[1764005685430,0.58,136.81,136.72,7.31421884]
[1764005685629,0.58,136.84,136.73,50.0]
[1764005685833,3.44,136.83,136.73,50.67]
[1764005686037,9.38994492,136.88,136.74,50.67]
[1764005686217,3.44,136.87,136.76,50.0]
[1764005686417,3.44,136.87,136.77,0.67]
[1764005686619,0.58,136.88,136.77,0.67]
[1764005686843,0.58,136.88,136.78,100.0]
[1764005687041,0.58,136.91,136.78,100.0]
[1764005687219,3.44,136.9,136.79,0.67]
[1764005687414,19.748864,136.9,136.8,25.58479532]
[1764005687614,3.44,136.89,136.8,25.58479532]
[1764005687837,3.44,136.89,136.81,0.66]
[1764005688026,16.308864,136.91,136.81,0.66]
[1764005688339,3.44,136.91,136.81,0.66]
[1764005688511,9.38994492,136.9,136.8,25.58479532]
[1764005688710,8.80994492,136.89,136.77,18.27760054]
[1764005688935,9.38994492,136.89,136.78,0.66]
[1764005689120,8.80994492,136.87,136.78,0.66]
[1764005689335,3.42,136.86,136.79,7.31047591]
[1764005689710,18.26035897,136.91,136.79,7.31047591]
[1764005689919,8.80994492,136.84,136.74,0.66]
[1764005690140,0.58,136.85,136.75,0.66]
[1764005690643,16.308864,136.88,136.75,0.66]
[1764005690644,0.58,136.87,136.75,50.66]
[1764005690821,3.42,136.89,136.77,50.0]
[1764005691026,4.0,136.9,136.78,50.0]
[1764005691229,0.58,136.9,136.79,50.0]
[1764005691422,4.0,136.9,136.8,25.58479532]
[1764005691626,0.58,136.9,136.8,26.24479532]
[1764005691825,4.0,136.9,136.81,0.66]
[1764005692039,0.58,136.9,136.81,0.66]
[1764005692245,9.38994492,136.89,136.8,25.58479532]
[1764005692538,9.38994492,136.89,136.8,7.30994152]
[1764005692730,9.38994492,136.89,136.8,25.58479532]
[1764005692928,0.58,136.88,136.8,25.58479532]
[1764005693332,16.888864,136.91,136.82,7.30887297]
[1764005693540,0.58,136.91,136.82,25.58105539]
[1764005693720,0.58,136.91,136.83,0.7]
[1764005693921,3.42,136.91,136.83,0.7]
[1764005694128,164.4,136.97,136.83,100.7]
[1764005694129,0.58,136.96,136.83,100.7]
[1764005694330,3.42,136.95,136.83,100.7]
[1764005694620,171.69823289,137.02,136.85,116.308864]
[1764005694926,16.308864,136.98,136.84,0.7]
[1764005695134,8.80994492,136.97,136.84,0.7]
[1764005695318,9.38994492,136.97,136.84,0.7]
[1764005695519,8.80994492,136.93,136.85,7.30727073]
[1764005695748,3.42,136.92,136.85,7.30727073]
[1764005696448,3.42,136.92,136.84,8.00763961]
[1764005696744,0.58,136.91,136.84,7.30763961]
[1764005696947,0.58,136.91,136.83,7.30817326]
[1764005697153,0.58,136.91,136.78,136.55282529]
[1764005697154,0.58,136.91,136.78,100.0]
[1764005697322,25.11880892,136.9,136.79,18.97530782]
[1764005697522,25.11880892,136.9,136.79,26.28578373]
[1764005697838,0.58,136.89,136.8,0.7]
[1764005698026,0.58,136.89,136.79,25.58578373]
[1764005698349,3.42,136.88,136.8,0.7]
[1764005698847,0.58,136.89,136.8,0.7]
[1764005699046,3.42,136.87,136.8,0.7]
[1764005699550,3.42,136.87,136.8,26.2844578]
[1764005700049,3.42,136.89,136.81,0.7]
[1764005700358,3.42,136.91,136.81,0.7]
[1764005700720,0.58,136.98,136.84,100.0]
[1764005700925,3.42,137.0,136.87,66.308864]
[1764005701223,0.58,136.99,136.87,16.308864]
[1764005701436,0.58,136.99,136.89,25.56797428]
[1764005701822,0.58,136.99,136.84,50.0]
[1764005701823,8.80994492,136.95,136.84,0.7]
[1764005702049,3.42,136.94,136.85,0.7]
[1764005702739,9.38994492,136.93,136.85,0.7]
[1764005702944,9.38994492,136.93,136.76,50.0]
[1764005702945,8.80994492,136.91,136.76,50.0]
[1764005703154,8.80994492,136.91,136.8,0.7]
[1764005703445,0.58,136.9,136.81,25.58292521]
[1764005703666,25.11880892,136.89,136.77,0.7]
[1764005703953,8.80994492,136.85,136.76,0.7]
[1764005704256,8.80994492,136.83,136.76,0.7]
[1764005704642,8.80994492,136.79,136.63,100.2]
[1764005704956,25.11880892,136.77,136.65,0.7]
[1764005705128,25.11880892,136.77,136.66,8.21735071]
[1764005705326,8.80994492,136.75,136.66,8.21735071]
[1764005705524,8.80994492,136.73,136.66,0.2]
[1764005705826,8.80994492,136.71,136.66,0.2]
[1764005706268,8.80994492,136.69,136.66,0.2]
[1764005706449,8.80994492,136.66,136.59,0.2]
[1764005706627,8.80994492,136.64,136.59,0.2]
[1764005706828,3.44,136.65,136.59,0.2]
[1764005707053,3.44,136.65,136.59,0.9]
[1764005707255,3.44,136.65,136.59,8.22117071]
[1764005707554,8.80994492,136.66,136.59,0.2]
[1764005707736,8.80994492,136.64,136.59,0.2]
[1764005707938,0.48,136.64,136.59,0.2]
[1764005708149,12.72994492,136.63,136.59,0.2]
[1764005708335,3.44,136.62,136.59,0.2]
[1764005708828,9.28994492,136.61,136.59,0.2]
[1764005709464,3.44,136.61,136.59,0.2]
[1764005710255,9.28994492,136.6,136.59,0.2]
[1764005711284,19.748864,136.61,136.59,0.2]
[1764005711579,3.44,136.6,136.59,0.2]
[1764005712064,8.80994492,136.63,136.59,0.2]
[1764005712235,3.44,136.61,136.59,0.2]
[1764005712653,3.44,136.62,136.59,0.2]
[1764005713035,3.44,136.62,136.59,7.52097981]
[1764005713362,3.44,136.62,136.59,0.2]
[1764005714163,8.80994492,136.64,136.59,0.2]
[1764005714342,3.44,136.63,136.59,0.2]
[1764005714868,0.48,136.69,136.59,8.22116152]
[1764005715072,12.24994492,136.68,136.59,8.22116152]
[1764005715281,12.24994492,136.68,136.6,0.7]
[1764005715478,12.72994492,136.68,136.6,0.7]
[1764005715978,3.42,136.67,136.6,8.02059938]
[1764005716363,3.42,136.67,136.61,0.7]
[1764005716558,0.48,136.7,136.61,0.7]
[1764005716781,8.80994492,136.68,136.59,0.2]
[1764005717265,25.59880892,136.68,136.59,7.52117313]
[1764005717663,25.11880892,136.68,136.59,7.52117313]
[1764005717867,32.4352392,136.68,136.59,0.2]
[1764005718049,8.80994492,136.66,136.59,0.2]
[1764005718456,0.48,136.66,136.59,0.2]
[1764005719051,3.42,136.65,136.59,0.2]
[1764005719286,8.80994492,136.64,136.59,0.2]
[1764005719455,9.28994492,136.64,136.59,0.2]
[1764005719785,8.80994492,136.62,136.59,0.2]
[1764005720077,32.43855432,136.62,136.59,0.1]
[1764005720248,8.80994492,136.6,136.59,0.1]
[1764005720452,12.22994492,136.6,136.59,0.1]
[1764005720678,12.60994492,136.6,136.59,0.1]
[1764005721885,19.93058913,136.6,136.59,0.1]
[1764005722082,12.22994492,136.6,136.59,0.1]
[1764005722858,8.80994492,136.6,136.59,0.1]
[1764005723157,12.22994492,136.6,136.59,0.1]
[1764005723963,24.00846157,136.62,136.59,0.1]
[1764005723964,16.308864,136.62,136.59,0.1]
[1764005724182,8.80994492,136.66,136.6,0.66]
[1764005724387,3.42,136.65,136.6,0.66]
[1764005724762,8.80994492,136.64,136.59,0.1]
[1764005725064,3.8,136.65,136.59,0.76]
[1764005725065,3.42,136.65,136.59,0.76]
[1764005725870,8.80994492,136.64,136.59,0.1]
[1764005726385,0.38,136.63,136.59,0.1]
[1764005726591,8.80994492,136.62,136.59,0.1]
[1764005726880,3.42,136.61,136.59,0.1]
[1764005727056,8.80994492,136.6,136.59,0.1]
[1764005727255,3.42,136.61,136.59,0.1]
[1764005727454,18.29395906,136.66,136.59,0.1]
[1764005727455,3.42,136.6,136.59,0.76]
[1764005727694,9.18994492,136.67,136.59,0.76]
[1764005727996,8.80994492,136.65,136.59,0.76]
[1764005728281,16.308864,136.62,136.59,0.1]
[1764005728486,12.22994492,136.61,136.59,0.1]
[1764005729072,3.42,136.61,136.59,0.1]
[1764005729272,8.80994492,136.64,136.59,0.1]
[1764005729489,3.42,136.63,136.59,0.1]
[1764005730863,8.80994492,136.62,136.59,0.1]
[1764005731475,9.18994492,136.62,136.59,0.1]
[1764005731873,8.80994492,136.62,136.59,0.1]
[1764005732464,16.12958738,136.62,136.59,0.1]
[1764005732668,16.688864,136.61,136.59,0.1]
[1764005732859,9.08994492,136.6,136.51,0.66]
[1764005733065,3.42,136.59,136.54,0.66]
[1764005733281,3.42,136.58,136.54,0.66]
[1764005734066,3.42,136.58,136.54,7.98338077]
[1764005734578,3.42,136.58,136.55,0.66]
[1764005735485,3.42,136.6,136.55,0.66]
[1764005736199,18.57145474,136.68,136.56,7.32278851]
[1764005736400,19.54702471,136.67,136.56,7.32278851]
[1764005736697,9.08994492,136.68,136.57,0.66]
[1764005736913,3.4,136.67,136.57,0.66]
[1764005738300,3.4,136.67,136.58,25.62600673]
[1764005738800,0.28,136.73,136.59,0.66]
[1764005738994,3.4,136.72,136.59,0.66]
[1764005739410,8.80994492,136.71,136.59,0.66]
[1764005740076,8.80994492,136.69,136.59,0.66]
[1764005740273,16.308864,136.68,136.59,0.66]
[1764005740477,8.80994492,136.66,136.59,7.98079279]
[1764005740905,8.80994492,136.66,136.6,0.66]
[1764005741208,8.80994492,136.66,136.56,7.32278851]
[1764005741373,3.4,136.66,136.6,0.66]
[1764005742701,3.4,136.66,136.6,7.98032016]
[1764005742905,3.4,136.67,136.6,26.2819307]
[1764005743087,3.4,136.67,136.61,0.66]
[1764005744490,8.80994492,136.7,136.61,7.98010644]
[1764005744678,3.4,136.69,136.61,7.98010644]
[1764005744875,3.4,136.69,136.62,0.66]
[1764005745085,12.11084674,136.76,136.62,0.66]
[1764005745287,3.4,136.77,136.64,66.308864]
[1764005745491,3.4,136.77,136.65,0.66]
[1764005745790,0.28,136.76,136.61,50.73201083]
[1764005745987,1.99999999,136.66,136.57,0.66]
[1764005746341,16.308864,136.62,136.57,0.66]
[1764005746491,3.42,136.61,136.57,0.66]
[1764005747015,3.42,136.63,136.57,7.98225069]
[1764005747305,3.42,136.65,136.58,0.67]
[1764005748508,3.42,136.69,136.59,7.32118017]
[1764005748710,3.42,136.69,136.58,0.67]
[1764005748711,10.7358795,136.69,136.58,7.99152719]
[1764005748913,10.7358795,136.69,136.58,0.67]
[1764005748914,8.80994492,136.65,136.58,0.67]
[1764005749712,16.308864,136.62,136.55,0.67]
[1764005750012,3.42,136.61,136.55,0.67]
[1764005750723,0.7840418,136.67,136.55,0.67]
[1764005751021,16.308864,136.63,136.55,0.67]
[1764005751188,3.42,136.62,136.55,0.67]
[1764005751509,8.98994492,136.66,136.55,0.67]
[1764005751715,8.80994492,136.63,136.55,0.67]
[1764005752515,16.12908282,136.63,136.55,0.67]
[1764005753031,8.80994492,136.61,136.55,0.67]
[1764005753415,8.80994492,136.61,136.52,0.7]
[1764005753604,16.488864,136.62,136.53,0.7]
[1764005753808,16.308864,136.6,136.53,0.7]
[1764005754014,16.12908282,136.63,136.53,0.7]
[1764005754015,3.42,136.61,136.53,0.7]
[1764005754612,16.30630429,136.68,136.54,25.63351397]